Cogmind - Beta 15 @@@ ROGUE MODE // 2025.05.08 @ 21:35:00 Player: Minty Result: Destroyed by DS-KRR(M) with Reinforced Deuterium Engine chain reaction Performance ------------- Evolutions (1) 500 Regions Visited (5) 1000 Robots Destroyed (27) 135 Value Destroyed (784) 784 Prototype IDs (3) 60 Alien Tech Used (1) 200 Bonus (700) 700 TOTAL SCORE: 3379 Bonus ------- Follower Combat Kills 100 Met Imprinter 300 Was Imprinted 300 Cogmind --------- Core Integrity 0/400 Matter 270/300 Energy 41/100 System Corruption 5% Temperature Cool (12) Movement Core (50) Location -6/Proximity Caves Parts ------- > --- POWER (1) -------- (None) > --- PROPULSION (2) --- (None) > --- UTILITY (3) ------ Melee Analysis Suite > --- WEAPON (3) ------- CR-A16's Pointy Stick > --- INVENTORY (5) ---- Improved Terrain Scanner Mini Grenade Launcher RU-N14's Throwing Claymores (4) RU-N14's Throwing Claymores (2) RU-N14's Throwing Claymores (5) Peak State ------------ > --- POWER ------------ Improved Deuterium Engine > --- PROPULSION ------- Improved Treads Improved Treads > --- UTILITY ---------- Heat Sink Small Storage Unit Core Analyzer > --- WEAPON ----------- Lightning Gun Gatling Laser Mini Grenade Launcher > --- INVENTORY -------- Improved Terrain Scanner Melee Analysis Suite Utility Shielding RU-N14's Throwing Claymores RU-N14's Throwing Claymores RU-N14's Throwing Claymores RU-N14's Throwing Claymores CR-A16's Pointy Stick [Rating: 27] Favorites ----------- Power Light Ion Engine Engine Light Ion Engine Propulsion Improved Treads Treads Improved Treads Leg Aluminum Leg Utility Small Storage Unit Device Heat Sink Storage Small Storage Unit Processor Core Analyzer Protection Light Armor Plating Weapon Mini Grenade Launcher Energy Gun Beam Rifle Ballistic Gun Assault Rifle Launcher Mini Grenade Launcher Special Weapon RU-N14's Throwing Claymores Piercing Weapon CR-A16's Pointy Stick Build | -11 -10 -9 -9 -7 -6 ------- Run | Yrd Mat Mat Min Zio Pro Slots Evolved 2 | . . 2 . . . Power . | . . . . . . Propulsion . | . . . . . . Utility 1 | . . 1 . . . Weapon 1 | . . 1 . . . Parts Attached 23 | . 5 8 2 3 5 Power 2 | . 1 . . . 1 Engine 2 | . 1 . . . 1 Core . | . . . . . . Reactor . | . . . . . . Propulsion 4 | . 2 2 . . . Treads 4 | . 2 2 . . . Leg . | . . . . . . Wheel . | . . . . . . Hover . | . . . . . . Flight . | . . . . . . Utility 7 | . 1 2 1 1 2 Device 2 | . 1 . 1 . . Storage 1 | . . 1 . . . Processor 2 | . . . . 1 1 Hackware . | . . . . . . Protection 2 | . . 1 . . 1 Artifact . | . . . . . . Weapon 10 | . 1 4 1 2 2 Energy Gun 5 | . . 3 . 1 1 Energy Cannon . | . . . . . . Ballistic Gun 1 | . 1 . . . . Ballistic Cannon . | . . . . . . Launcher 2 | . . 1 1 . . Special Weapon 1 | . . . . 1 . Impact Weapon . | . . . . . . Slashing Weapon . | . . . . . . Piercing Weapon 1 | . . . . . 1 Special Melee Weapon . | . . . . . . Unidentified Prototypes 2 | . . . . 1 1 Corrupted Parts 1 | . . . . . 1 System Corruption 5 | . . . . . 5 Parts Lost 12 | . . 2 3 . 7 Power 1 | . . . . . 1 Propulsion 2 | . . . . . 2 Utility 4 | . . 1 1 . 2 Weapon 5 | . . 1 2 . 2 Highest Loss Streak 6 | . . 1 3 . 6 To Critical Strikes . | . . . . . . Average Backups 7 | . 7 7 7 7 7 Power . | . . . . . . Propulsion 3 | . 6 6 4 2 . Utility 2 | . . . 1 3 2 Weapon 2 | . 1 1 1 2 5 Tool/Special . | . . . . . . Unused Backups 11 | . . 1 2 4 4 Power . | . . . . . . Propulsion 6 | . . . 2 4 . Utility 1 | . . . . . 1 Weapon 4 | . . 1 . . 3 Tool/Special . | . . . . . . Average Slot Usage (%) 94 | . 90 89 94 100 92 Engine 11 | . 14 11 11 11 10 Treads 21 | . 19 22 22 22 21 Device 8 | . 5 8 4 11 10 Storage 16 | . 14 12 22 18 11 Processor 2 | . . . . 3 3 Protection 2 | . . 4 5 . 4 Energy Gun 18 | . 14 18 23 14 21 Ballistic Gun 2 | . 14 6 . . . Launcher 9 | . . 4 5 18 6 Peak Build Rating 27 | . 7 14 15 22 27 Average Rating 16 | . 6 10 13 17 23 On Entrance 11 | 6 6 7 14 15 22 Naked Turns . | . . . . . . Heaviest Build 28 | 11 13 21 21 17 28 Greatest Support 46 | 20 40 46 46 46 46 Greatest Overweight (x) 1 | . . . . . 1 Average Overweight (x) . | . . . . . . Largest Inventory Capacity 8 | . 8 8 8 8 8 Average Capacity 7 | . 8 8 8 8 7 Most Carried 8 | . 8 8 8 8 8 Average Carried 7 | . 7 7 7 7 7 Final Capacity 8 | 8 8 8 8 8 5 Final Carried 8 | 6 8 8 7 8 5 Class Distribution -------------------- 52% | Gunner 28% | Mutant 14% | Tank 4% | Bomber Dominant Class ---------------- Mutant | -10/Materials Gunner | -9/Materials Tank | -9/Mines Gunner | -7/Zion Gunner | -6/Proximity Caves Resources | -11 -10 -9 -9 -7 -6 ----------- Run | Yrd Mat Mat Min Zio Pro Matter Collected 624 | 200 49 79 136 64 96 Remotely . | . . . . . . Salvage Created 841 | . 156 174 360 . 151 Parts 44 | . 10 11 19 . 4 Haulers Intercepted . | . . . . . . Recyclers Shooed 1 | . . . 1 . . Parts Field Recycled . | . . . . . . Retrieved Matter . | . . . . . . Parts Self-Destructed 9 | . . . . . 9 Prevented 3 | . . . . . 3 Kills | -11 -10 -9 -9 -7 -6 ------- Run | Yrd Mat Mat Min Zio Pro Combat Hostiles Destroyed 24 | . 5 6 10 . 3 Guns 18 | . 5 6 6 . 1 AOE 5 | . . . 3 . 2 Classes Destroyed 6 | . 2 1 3 . . Tunneler 2 | . . . 2 . . Recycler 1 | . . . 1 . . Swarmer 9 | . 2 3 4 . . Grunt 10 | . 3 . 4 . 3 Duelist 2 | . . . 2 . . Sentry 3 | . . 3 . . . Best Kill Streak 4 | . 3 3 4 . 3 Combat Bots Only 4 | . 3 3 4 . 3 Max Kills in Single Turn 2 | . 1 1 2 . 1 Gunslinging . | . . . . . . Exploded 2 | . . . 2 . 1 Melee . | . . . . . . Uniques/NPCs Destroyed . | . . . . . . Combat | -11 -10 -9 -9 -7 -6 -------- Run | Yrd Mat Mat Min Zio Pro Hostile Shots Fired 179 | . 28 45 34 . 72 Missed 63 | . 8 12 12 . 31 Hits 116 | . 20 33 22 . 41 Melee 7 | . . . 7 . . Projectile 109 | . 20 33 15 . 41 Damage Taken 1915 | . 197 504 432 . 782 Core 465 | . 64 87 75 . 239 Absorbed by Shields . | . . . . . . Redirected to Shielding 26 | . . . . . 26 Regen/Repaired (Parts) 52 | . . . . 52 . Core Remaining (%) 87 | 100 74 . . . . Volleys Fired 74 | . 15 13 37 1 8 Largest 3 | . 2 3 3 2 2 Hottest 162 | . 70 126 162 111 135 Shots Fired 140 | . 30 28 68 2 12 Gun 134 | . 30 28 65 2 9 Cannon . | . . . . . . Launcher 6 | . . . 3 . 3 Special . | . . . . . . Kinetic 21 | . 15 6 . . . Thermal 108 | . 15 22 65 1 5 Explosive 6 | . . . 3 . 3 Electromagnetic 5 | . . . . 1 4 Robot Hit Streak 24 | . 6 18 24 . 7 Robot Miss Streak 7 | . 7 5 3 . 2 Penetration Max . | . . . . . . Secondary Targets 5 | . 1 1 3 . . Max Gunslinging Chain 1 | . 1 1 1 . . Shots Hit Robots 98 | . 18 21 46 . 13 Core Hits 46 | . 8 8 19 . 11 Critical Kills . | . . . . . . Critical Parts Destroyed 1 | . 1 . . . . Critical Strikes 9 | . 2 2 5 . . Burn 8 | . 1 2 5 . . Destroy 1 | . 1 . . . . Melee Attacks 5 | . . . . . 5 Impact . | . . . . . . Slashing . | . . . . . . Piercing 5 | . . . . . 5 Sneak Attacks . | . . . . . . Combat Hostiles . | . . . . . . Follow-up Attacks . | . . . . . . Damage Inflicted 2097 | . 226 578 830 . 463 Guns 1264 | . 217 303 630 . 114 Cannons . | . . . . . . Explosions 684 | . . 274 200 . 210 Melee 139 | . . . . . 139 Ramming 10 | . 9 1 . . . Kinetic 193 | . 117 76 . . . Thermal 1018 | . 100 227 630 . 61 Explosive 684 | . . 274 200 . 210 Electromagnetic 53 | . . . . . 53 Impact . | . . . . . . Slashing . | . . . . . . Piercing 139 | . . . . . 139 Highest Corruption 5 | . . . . . 5 Average Corruption 5 | . . . . . 5 Corruption Purged . | . . . . . . Corruption Blocked . | . . . . . . Effects 15 | . . . . . 15 Message Errors 5 | . . . . . 5 Matter Fused 3 | . . . . . 3 Heat Flow Errors 1 | . . . . . 1 Energy Discharges 3 | . . . . . 3 Data Loss (minor) 1 | . . . . . 1 Data Loss (major) 1 | . . . . . 1 Weapon Failures 1 | . . . . . 1 Overload Shots . | . . . . . . Overflow Damage 63 | . . 63 . . . Projectiles . | . . . . . . Explosions 63 | . . 63 . . . Melee . | . . . . . . Knockbacks . | . . . . . . Impact . | . . . . . . Kinetic . | . . . . . . Secondary . | . . . . . . Self-Inflicted Damage 150 | . . 100 50 . . Shots 4 | . . 1 3 . . Rammed 3 | . 2 1 . . . Targets Rammed 3 | . 2 1 . . . Kicked . | . . . . . . Crushed . | . . . . . . Highest Temperature 388 | . 48 154 388 12 70 Average Temperature 82 | . 21 50 116 8 34 Received Heat Transfer 411 | . 78 105 60 . 168 Effects 5 | . . . 5 . . Shutdowns 1 | . . . 1 . . Energy Bleed 1 | . . . 1 . . Interference 2 | . . . 2 . . Matter Decay 1 | . . . 1 . . Siege Activations . | . . . . . . Martial Activations . | . . . . . . Shielding Activations . | . . . . . . Robots Disrupted . | . . . . . . Combat Hostiles . | . . . . . . Robots Corrupted . | . . . . . . Combat Hostiles . | . . . . . . Parts Fried . | . . . . . . Impact Corruptions . | . . . . . . Robots Melted 1 | . . . 1 . . Combat Hostiles 1 | . . . 1 . . Parts Melted 8 | . . 3 5 . . Heat Transferred 3294 | . 370 740 2035 . 149 Parts Sabotaged . | . . . . . . Parts Stolen . | . . . . . . Parts Stripped . | . . . . . . Power Chain Reactions . | . . . . . . Alert | -11 -10 -9 -9 -7 -6 ------- Run | Yrd Mat Mat Min Zio Pro Maximum Alert Level 1 | . . 1 . . . Low Security (%) 98 | . 100 95 100 . . Level 1 1 | . . 4 . . . Level 2 . | . . . . . . Level 3 . | . . . . . . Level 4 . | . . . . . . Level 5 . | . . . . . . High Security . | . . . . . . Max Security . | . . . . . . Peak Influence 209 | . 90 209 160 . . Initial 70 | . . 14 70 . . Average 65 | . 33 89 69 . . Influence Increases 975 | . 170 301 280 . 224 Destroy 0b10 Robot/C 560 | . 100 120 200 . 140 Destroy 0b10 Robot/NC 15 | . . . 15 . . Destroy Leader 110 | . 20 40 30 . 20 Allied During Kill 64 | . . . . . 64 Successful Hack 25 | . 5 20 . . . Disable Machine 60 | . . 45 15 . . Destroy Structure 36 | . . 16 20 . . Lose Combat Pursuer 105 | . 45 60 . . . Influence Decreases 975 | . 135 155 414 47 224 Entered New Map 179 | . . 21 111 47 . Time Decay 774 | . 135 114 303 . 222 Lost Part 22 | . . 20 . . 2 Squads Dispatched 3 | . 2 1 . . . Investigation 2 | . 2 . . . . Extermination . | . . . . . . Reinforcement 1 | . . 1 . . . Assault . | . . . . . . Garrison . | . . . . . . Intercept . | . . . . . . Searches Triggered . | . . . . . . Construction Impeded . | . . . . . . Haulers Reinforced . | . . . . . . Active Scanning Responses . | . . . . . . Cargo Convoy Interrupts . | . . . . . . Stealth | -11 -10 -9 -9 -7 -6 --------- Run | Yrd Mat Mat Min Zio Pro Distress Signals 4 | . 1 3 . . . Communications Jammed . | . . . . . . Distress Signals . | . . . . . . Times Spotted 43 | . 10 17 9 . 7 Peak Tracking Total 7 | . 6 7 3 . 3 Tactical Retreats 6 | . 3 3 . . . Traps | -11 -10 -9 -9 -7 -6 ------- Run | Yrd Mat Mat Min Zio Pro Traps Triggered 1 | . 1 . . . . Indirectly . | . . . . . . Trap Hack Attempts . | . . . . . . Triggered . | . . . . . . Disarmed . | . . . . . . Reprogrammed . | . . . . . . Reused . | . . . . . . Traps Extracted . | . . . . . . Installed . | . . . . . . Triggered . | . . . . . . Objects Rigged 1 | . . 1 . . . Exploded 1 | . . 1 . . . Machines | -11 -10 -9 -9 -7 -6 ---------- Run | Yrd Mat Mat Min Zio Pro Machines Disabled 5 | . . 3 1 . 1 Max in Single Turn 3 | . . 3 1 . 1 Machines Repaired . | . . . . . . Machines Dismantled . | . . . . . . Machines Sabotaged . | . . . . . . Overloaded Fab Kills . | . . . . . . Hacking | -11 -10 -9 -9 -7 -6 --------- Run | Yrd Mat Mat Min Zio Pro Machines Accessed 7 | . 4 3 . . . Terminals 6 | . 3 3 . . . Fabricators . | . . . . . . Repair Stations . | . . . . . . Recycling Units 1 | . 1 . . . . Scanalyzers . | . . . . . . Garrison Access . | . . . . . . Total Hacks 29 | . 14 15 . . . Successful 13 | . 7 6 . . . Failed 16 | . 7 9 . . . Catastrophic 3 | . 3 . . . . Database Lockouts . | . . . . . . Manual 15 | . 5 10 . . . Terminals 25 | . 10 15 . . . Fabricators . | . . . . . . Repair Stations . | . . . . . . Recycling Units 4 | . 4 . . . . Scanalyzers . | . . . . . . Garrison Access . | . . . . . . Terminal Hacks 8 | . 3 5 . . . Robot Analysis 4 | . 2 2 . . . Prototype ID Bank 1 | . . 1 . . . Alert Level 2 | . 1 1 . . . Hauler Manifests 1 | . . 1 . . . Fabricator Hacks . | . . . . . . Repair Station Hacks . | . . . . . . Recycling Unit Hacks 3 | . 3 . . . . Process 1 | . 1 . . . . Report Inventory 1 | . 1 . . . . Retrieve Matter 1 | . 1 . . . . Scanalyzer . | . . . . . . Garrison Access Hacks . | . . . . . . Unauthorized Hacks 2 | . 1 1 . . . Terminals 2 | . 1 1 . . . Botnet 1 | . 1 . . . . Detonate 1 | . . 1 . . . Fabricators . | . . . . . . Repair Stations . | . . . . . . Recycling Units . | . . . . . . Scanalyzers . | . . . . . . Garrison Access . | . . . . . . Data Cores Recovered . | . . . . . . Used . | . . . . . . Hacking Detections 7 | . 4 3 . . . Full Trace Events 4 | . 2 2 . . . Feedback Events . | . . . . . . Feedback Blocked . | . . . . . . Robot Schematics Acquired 4 | . . . . 4 . Robots Built . | . . . . . . Authchips . | . . . . . . Time . | . . . . . . Total Robot Build Rating . | . . . . . . Part Schematics Acquired 13 | . . . . 13 . Parts Built . | . . . . . . Authchips . | . . . . . . Time . | . . . . . . Total Part Build Rating . | . . . . . . Parts Repaired . | . . . . . . Time . | . . . . . . Parts Recycled . | . . . . . . Recycled Matter 12 | . 12 . . . . Retrieved Matter 12 | . 12 . . . . Retrieved Components . | . . . . . . Parts Scanalyzed . | . . . . . . Part Schematics Acquired . | . . . . . . Parts Damaged . | . . . . . . Bothacking | -11 -10 -9 -9 -7 -6 ------------ Run | Yrd Mat Mat Min Zio Pro Used RIF Installer . | . . . . . . Robots Hacked . | . . . . . . Non-combat . | . . . . . . Combat . | . . . . . . Robot Hacks Applied . | . . . . . . Relay Couplers Released . | . . . . . . Fabnet Peak Effective % . | . . . . . . Robots Rewired . | . . . . . . Allies Hacked . | . . . . . . Hacks Repelled . | . . . . . . Allies | -11 -10 -9 -9 -7 -6 -------- Run | Yrd Mat Mat Min Zio Pro Total Allies 4 | . . . . 4 . Largest Group 4 | . . . . 4 4 Highest-Rated Group 158 | . . . . 158 158 Highest-Rated Ally 40 | . . . . 40 40 Total Orders . | . . . . . . Ally Attacks 29 | . . . . . 29 Total Damage 790 | . . . . . 790 Kills 4 | . . . . . 4 Allies Corrupted . | . . . . . . Allies Melted . | . . . . . . Intel | -11 -10 -9 -9 -7 -6 ------- Run | Yrd Mat Mat Min Zio Pro Active Infowar (turns) . | . . . . . . Robot Analysis Total 4 | . 2 2 . . . Derelict Logs Recovered 6 | . . . 1 2 3 Drone Launches . | . . . . . . Drone Recoveries . | . . . . . . Exploration | -11 -10 -9 -9 -7 -6 ------------- Run | Yrd Mat Mat Min Zio Pro Turns Passed 3358 | . 359 343 738 1027 891 Spaces Moved 1922 | 1 198 179 392 631 521 Core 1 | . . . . . 1 Treads 1858 | . 136 179 392 631 520 Legs 63 | 1 62 . . . . Wheels . | . . . . . . Hover . | . . . . . . Flight . | . . . . . . Fastest Speed 50 | 120 120 160 160 160 50 Average Speed 158 | 120 147 160 160 160 159 Slowest Speed 240 | 120 160 160 160 160 240 Overloaded Moves . | . . . . . . Propulsion Burnouts . | . . . . . . Robots Hopped . | . . . . . . Potential Cave-ins . | . . . . . . Cave-ins Triggered . | . . . . . . Exploration Rate (%) 49 | 2 36 24 86 79 72 Regions Visited 5 Branch Regions 3 Pre-discovered Areas 1 | . . . 1 . . Known Exits Taken . | . . . . . . Unknown Exits Taken 5 | 1 1 1 1 1 . Scrap Searched 3 | . . . 1 1 1 Spaces Dug . | . . . . . . Terrain Destroyed 59 | . . 14 29 . 16 Melee . | . . . . . . Projectile . | . . . . . . AOE 59 | . . 14 29 . 16 Terrain Rammed . | . . . . . . Walls Destroyed . | . . . . . . Machines Disabled . | . . . . . . Actions | -11 -10 -9 -9 -7 -6 --------- Run | Yrd Mat Mat Min Zio Pro Total 2097 | . 235 210 446 647 559 Wait 22 | . 7 . 4 3 8 Move 1917 | . 197 178 391 630 521 Hop . | . . . . . . Pick Up 16 | . 5 3 3 5 . Fast Attach 10 | . 1 5 1 . 3 Attach 13 | . 2 1 5 . 5 Detach 6 | . . 1 3 . 2 Swap 10 | . 2 2 . 4 2 Drop 21 | . 4 6 2 4 5 Fire 74 | . 15 13 37 1 8 Melee 5 | . . . . . 5 Ram . | . . . . . . Kick . | . . . . . . Crush 3 | . 2 1 . . . Escape Stasis . | . . . . . . Rewire . | . . . . . . Trap . | . . . . . . Miscellaneous . | . . . . . . Route ------- -11/Scrapyard -10/Materials -9/Materials -9/Mines (discovered 2 exits: [*Mat] / *Zio) -7/Zion -6/Proximity Caves History --------- Turn | Location | Event 1 | -11/Scrapyard | Discovered new exit (range 0) 1 | -11/Scrapyard | Entered Materials 303 | -10/Materials | Build established: Mutant 352 | -10/Materials | Discovered new exit (range 4) 360 | -10/Materials | Entered another Materials area 360 | -9/Materials | Evolved 2 slots: Utility x1, Weapon x1 573 | -9/Materials | Discovered new exit (range 12) 703 | -9/Materials | Entered Mines 946 | -9/Mines | Build established: Tank 1146 | -9/Mines | Lost 3 parts (1u2w) 1435 | -9/Mines | Discovered new exit (range 6) 1436 | -9/Mines | A Derelict revealed a hidden shortcut to a safe place 1441 | -9/Mines | Entered Zion 1489 | -7/Zion | Found CR-A16's Pointy Stick 1577 | -7/Zion | Build established: Gunner 1753 | -7/Zion | Met Imprinter 1778 | -7/Zion | Imprinted 1780 | -7/Zion | Declared Zion's savior 1857 | -7/Zion | Learned Factory security intel 1929 | -7/Zion | Given A8's code to call for help 2076 | -7/Zion | Found Prototype Special Weapon 2076 | -7/Zion | Identified RU-N14's Throwing Claymores 2082 | -7/Zion | Found RU-N14's Throwing Claymores 2085 | -7/Zion | Found RU-N14's Throwing Claymores 2087 | -7/Zion | Found RU-N14's Throwing Claymores 2128 | -7/Zion | Learned 8 Factory zone layouts 2165 | -7/Zion | Received a visual enhancement algorithm 2441 | -7/Zion | Discovered new exit (range 13) 2468 | -7/Zion | Entered Proximity Caves 2468 | -6/Proximity Caves | Accompanied by 4 allies 2579 | -6/Proximity Caves | Attracted the attention of an 0b10 checkpoint 2582 | -6/Proximity Caves | Core integrity fell below 50% 2644 | -6/Proximity Caves | Learned location of 1 exit from Factory 3114 | -6/Proximity Caves | Learned Factory stockpile data 3244 | -6/Proximity Caves | Found Alien Artifact 3244 | -6/Proximity Caves | Identified Dimensional Node Initializer 3244 | -6/Proximity Caves | Initialized slip node 3304 | -6/Proximity Caves | Build established: Mutant 3333 | -6/Proximity Caves | Spotted B-75 Beast 3355 | -6/Proximity Caves | Core integrity fell below 20% 3359 | -6/Proximity Caves | Destroyed by DS-KRR(M) with Reinforced Deuterium Engine chain reaction Last Messages --------------- 03244_ Acquired Alien Artifact. 03244_ Identified Dimensional Node Initializer. 03244_ Initializer activates and latches into the ground. 03258_ System corrupted: Heat flow error (+101). 03321_ System corrupted: Matter fused (-10). 03342_ Imp. Treads destroyed. 03348_ Imp. Deuterium Engine destroyed. 03348_ Imp. Treads destroyed. 03348_ Gatling Laser destroyed. 03350_ System corrupted: Energy discharge (-21). 03352_ Lightning Gun destroyed. 03352_ Heat Sink destroyed. 03352_ Knocked back. 03354_ Chain reaction triggered in Rnf. Deuterium Engine. 03355_ B-75 Beast heat damages Imp. Medium Treads. 03356_ Dropped RU-N14's Throwing Claymores. 03356_ Dropped Sml. Storage Unit. 03357_ Dropped Utility Shielding. 03358_ Knocked back. 03359_ Chain reaction triggered in Rnf. Deuterium Engine. Map ----- +----------------------------------------------------+ | ?????????????????????????????????????????????????? | | ?????????????????????????????????????????????????? | | ?????????????????????????????????????????????????? | | ?????????????????????????????????????????????????? | | ?????????????????????????????????????????????????? | | ?????????????????????????????????????????????????? | | ???#####?????????????????????????????????????????? | | ???#X "#?????????????????????????????????????????? | | ???# #?????????????????????????????????????????? | | ???#" "#?????????????????????????????????????????? | | ??### #####??????####????######??????????????????? | | ??# # # #?###### ###### #####??????????????? | | ??# ### ## #??????????????? | | ??# #?#####????????? | | ??# ## ## #????????? | | ??# ### # ### #?????????? | | ### ###### ### ## #??????????? | | ###?## ##?# #??????????? | | ##?# #??# #?????????? | | #?# ##?## ## ##?????????? | | ##?## #?## #### ####??????????? | | #####???####?# ###??#### ###?????????????? | | ## #????????????# #;##########??? #????????? | | ## #????????????## ## ### #???????? | | ## #?????????????# ## #???????? | | ?# #???????????### #;%M@ BB #???????? | | ?# ???????????# M %| BB #??????????? | | ?# ????????# M ! ## #??????????? | | ?#####???????#; % M % ##????????????????? | | ?????????????#; #?????????????????? | | ????????????#; ## #?????????????????? | | ????????????# ###### #?????????????????? | | ????????????# #####?????# ##?????????????????? | | ???????????#" #???????????##??????????????????? | | ???????????#### ????????????????????????????????? | | ??????????????# ????????????????????????????????? | | ??????????????# ?????????????????????????????????? | | ?????????????? ?????????????????????????????????? | | ?????????????# ??????????????????????????????????? | | ?????????????#???????????????????????????????????? | | ?????????????????????????????????????????????????? | | ?????????????????????????????????????????????????? | | ?????????????????????????????????????????????????? | | ?????????????????????????????????????????????????? | | ?###?????????????????????????????????????????????? | | ?# ##????????????????????????????????????????????? | | ## #????????????????????????????????????????????? | | #####????????????????????????????????????????? | | ##???????????????????????????????????????? | | #???????????????????????????????????????? | +----------------------------------------------------+ Best States ------------- Heat Dissipation 38 Energy Generation 16 Energy Capacity 290 Matter Stores 300 Matter Capacity 300 Sight Range 16 Terrain Scan Density 10 Armor Coverage 150 Utility Shielding 33 Evasion (%) 55 Core Analysis 6 Recoil Reduction 2 Item Schematics ----------------- Phase Shifter | -7/Zion | Archive Imp. Medium Armor Plating | -7/Zion | Archive Lyr. Light Armor Plating | -7/Zion | Archive Imp. System Restoration Module | -7/Zion | Archive Imp. Kinecellerator | -7/Zion | Archive Imp. Shield Generator | -7/Zion | Archive Plasma Rifle | -7/Zion | Archive Thermal Shield | -7/Zion | Archive Dynamic Insulation System | -7/Zion | Archive Lightning Gun | -7/Zion | Archive Flexi-carbon Leg | -7/Zion | Archive Imp. EM Pulse Cannon | -7/Zion | Archive Mni. Drone Bay | -7/Zion | Archive Robot Schematics ------------------ Y-54 Guardian | -7/Zion | Archive G-47 Trooper | -7/Zion | Archive W-25 Informer | -7/Zion | Archive Y-72 Warden | -7/Zion | Archive Fabricated ------------ Nothing Repaired ---------- Nothing Alien Tech Used ----------------- Dimensional Node Initializer Achievements -------------- None Challenges ------------ None Game ------ Seed CouplerOmegaMesh Manual? 0 Play Time 00:18:07 Cumulative 1025.0 hours Start 2025.05.08 @ 21:16:52 End 2025.05.08 @ 21:35:00 Sessions 1 Manual Loads 0 Difficulty Rogue Special Mode None Game No. 1258 Rogue 976 Adventurer 124 Explorer 158 Win Type - Total 44 Types 31/0/8/3/1/0/0/1/0/0 Lore% 91 Gallery% 85 Achievement% 79 Wizard Run 0 Options --------- Layout 0 ASCII 0 Keyboard 1 Movement Numpad Keybinds 0 Fullscreen 2 Font 18/X11 Map View 76x50 Zoom Use 0% Tactical HUD 1 Map Filters NONE Filters NONE Steam 1 RUN: b5821435-9e67-406f-a4d1-17183a05f534